bitfinex/quotes_BTCUSD_20220731
["timestamp","ask_amount","ask_price","bid_price","bid_amount"]
[1659254972967,0.3,23728.0,23724.0,0.1]
[1659254973113,0.3,23728.0,23720.0,0.35]
[1659254973114,0.304258,23727.0,23720.0,0.35]
[1659254973311,0.31768585,23727.0,23721.0,0.45725733]
[1659254973527,0.044,23725.0,23721.0,0.45725733]
[1659254974130,8.72e-05,23724.0,23722.0,0.02306466]
[1659254974353,8.72e-05,23724.0,23723.0,0.1]
[1659254974561,8.72e-05,23724.0,23723.0,0.15]
[1659254974770,8.72e-05,23724.0,23723.0,0.1]
[1659254975635,8.72e-05,23724.0,23723.0,0.078]
[1659254975636,0.0445372,23724.0,23723.0,0.078]
[1659254975854,0.0614896,23724.0,23723.0,0.078]
[1659254976095,0.06222305,23724.0,23723.0,0.078]
[1659254976331,8.72e-05,23724.0,23723.0,0.078]
[1659254976976,8.72e-05,23724.0,23720.0,0.3]
[1659254977189,8.72e-05,23724.0,23721.0,0.01998636]
[1659254977721,0.0200872,23724.0,23723.0,0.077]
[1659254978407,0.0645372,23724.0,23723.0,0.077]
[1659254978848,0.0445372,23724.0,23721.0,0.01998636]
[1659254979478,0.0170872,23724.0,23721.0,0.09598636]
[1659254980811,8.72e-05,23724.0,23722.0,0.304258]
[1659254981027,8.72e-05,23724.0,23721.0,0.01998636]
[1659254981322,8.72e-05,23724.0,23723.0,0.1]
[1659254981541,0.01699824,23724.0,23723.0,0.1]
[1659254981979,0.01699824,23724.0,23723.0,0.11772076]
[1659254982887,0.3,23727.0,23723.0,0.11772076]
[1659254983118,0.304258,23726.0,23723.0,0.11772076]
[1659254983354,0.3,23727.0,23723.0,0.11772076]
[1659254983582,0.021,23724.0,23723.0,0.19472076]
[1659254984087,0.021,23724.0,23723.0,0.1972212]
[1659254985313,0.63207676,23728.0,23723.0,0.1202212]
[1659254985521,0.021,23724.0,23723.0,0.1972212]
[1659254985750,0.0379524,23724.0,23723.0,0.177]
[1659254985972,0.021,23724.0,23723.0,0.19472076]
[1659254986802,0.40725733,23728.0,23723.0,0.11772076]
[1659254987013,0.304258,23727.0,23723.0,0.11772076]
[1659254987149,0.304258,23726.0,23723.0,0.11772076]
[1659254987384,0.45125733,23728.0,23723.0,0.11772076]
[1659254987596,0.304258,23727.0,23723.0,0.11772076]
[1659254987848,0.304258,23726.0,23723.0,0.11772076]
[1659254988068,0.01768585,23726.0,23723.0,0.11772076]
[1659254988246,0.45125733,23728.0,23723.0,0.11772076]
[1659254988448,0.304258,23727.0,23723.0,0.11772076]
[1659254988668,0.45125733,23728.0,23723.0,0.11772076]
[1659254988884,0.304258,23727.0,23723.0,0.11772076]
[1659254989113,0.40725733,23728.0,23723.0,0.11772076]
[1659254989351,0.351258,23727.0,23723.0,0.11772076]
[1659254989550,0.047,23727.0,23723.0,0.46772076]
[1659254989772,0.047,23727.0,23723.0,0.51772076]
[1659254989981,0.047,23727.0,23724.0,0.00047409]
[1659254990643,0.047,23727.0,23723.0,0.01772076]
[1659254990858,0.40725733,23728.0,23723.0,0.01772076]
[1659254991073,0.304258,23727.0,23723.0,0.01772076]
[1659254991279,0.01768585,23726.0,23723.0,0.01772076]
[1659254991487,0.44625733,23728.0,23723.0,0.01819487]
[1659254992674,0.40725733,23728.0,23723.0,0.01819487]
[1659254992872,0.40725733,23728.0,23723.0,0.31819487]
[1659254993082,0.40725733,23729.0,23723.0,0.31819487]
[1659254993490,0.345258,23728.0,23723.0,0.31819487]
[1659254993699,0.041,23728.0,23723.0,0.31819487]
[1659254994123,0.041,23728.0,23723.0,0.01819487]
[1659254994761,0.40725733,23729.0,23723.0,0.01819487]
[1659254994975,0.304258,23728.0,23723.0,0.01819487]
[1659254995203,0.304258,23727.0,23723.0,0.01819487]
[1659254995409,0.64532362,23729.0,23723.0,0.01819487]
[1659254995410,0.68432362,23729.0,23723.0,0.01819487]
[1659254995838,0.304258,23728.0,23723.0,0.01819487]
[1659254996098,0.304258,23727.0,23723.0,0.01819487]
[1659254996317,0.44625733,23729.0,23724.0,0.05]
[1659254996555,0.71151533,23728.0,23723.0,0.01819487]
[1659254996795,0.304258,23727.0,23723.0,0.01819487]
[1659254997079,0.40725733,23728.0,23723.0,0.01819487]
[1659254997292,0.304258,23727.0,23723.0,0.01819487]
[1659254997515,0.006,23727.0,23723.0,0.38419487]
[1659254997954,0.006,23727.0,23723.0,0.08419487]
[1659254998168,0.42494318,23726.0,23723.0,0.066]
[1659254998408,0.05,23724.0,23723.0,0.066]
[1659254998634,0.354316,23724.0,23723.0,0.066]
[1659254998855,0.05,23724.0,23722.0,0.01832902]
[1659254999083,0.05,23724.0,23718.0,0.8777]
[1659254999323,0.05,23724.0,23719.0,0.40725733]
[1659254999558,0.076,23724.0,23722.0,0.077]
[1659254999782,0.026,23724.0,23723.0,0.01772076]
[1659255000002,0.026,23724.0,23722.0,0.077]
[1659255000702,0.026,23724.0,23722.0,0.09707093]
[1659255000929,0.40725733,23726.0,23722.0,0.02007093]
[1659255001147,0.01768585,23725.0,23723.0,0.05]
[1659255001370,0.40725733,23726.0,23722.0,0.02007093]
[1659255001606,0.026,23724.0,23722.0,0.09707093]
[1659255002522,0.026,23724.0,23723.0,0.05]
[1659255002735,0.026,23724.0,23722.0,0.09707093]
[1659255004895,0.40725733,23726.0,23723.0,0.05]
[1659255005121,0.42494318,23726.0,23722.0,0.02007093]
[1659255005566,0.026,23724.0,23722.0,0.09707093]
[1659255006245,0.026,23724.0,23723.0,0.05]
[1659255006449,0.026,23724.0,23722.0,0.09707093]
[1659255006906,0.42494318,23726.0,23722.0,0.02007093]
[1659255007594,0.43594318,23726.0,23723.0,0.05]
[1659255007816,0.304316,23725.0,23722.0,0.09207093]
[1659255008034,0.43594318,23726.0,23722.0,0.09207093]
[1659255008246,0.43594318,23726.0,23723.0,0.05]
[1659255008487,0.304316,23725.0,23722.0,0.09207093]
[1659255008729,0.43594318,23726.0,23722.0,0.09207093]
[1659255008966,0.42494318,23726.0,23722.0,0.02007093]
[1659255009635,0.44394318,23726.0,23723.0,0.05]
[1659255009865,0.304316,23725.0,23722.0,0.077]
[1659255010109,0.44394318,23726.0,23722.0,0.09483808]
[1659255010329,0.42699078,23726.0,23722.0,0.09483808]
[1659255010548,0.42625733,23726.0,23722.0,0.09483808]
[1659255011409,0.42425733,23726.0,23722.0,0.09283808]
[1659255012979,0.40725733,23726.0,23722.0,0.01783808]
[1659255013527,0.42425733,23726.0,23722.0,0.09283808]
[1659255014201,0.01768585,23725.0,23722.0,0.09283808]
[1659255014617,0.0169524,23725.0,23722.0,0.09283808]
[1659255014887,0.40725733,23726.0,23722.0,0.01783808]
[1659255015323,0.304316,23725.0,23722.0,0.01783808]
[1659255015541,0.40725733,23726.0,23722.0,0.09283808]
[1659255015542,0.42425733,23726.0,23722.0,0.09283808]
[1659255016638,0.01768585,23725.0,23722.0,0.09283808]
[1659255016849,0.40725733,23726.0,23722.0,0.01783808]
[1659255017496,0.42425733,23726.0,23722.0,0.09283808]
[1659255018939,0.01768585,23725.0,23722.0,0.01783808]
[1659255019104,0.40725733,23726.0,23722.0,0.01783808]
[1659255019327,0.40725733,23726.0,23723.0,0.05]
[1659255019498,0.05,23724.0,23722.0,0.075]
[1659255020042,0.01758856,23723.0,23722.0,0.075]
[1659255020395,0.05,23724.0,23722.0,0.075]
[1659255020602,0.304316,23723.0,23722.0,0.075]
[1659255020818,0.0169524,23723.0,23719.0,0.70725733]
[1659255021028,0.0169524,23723.0,23720.0,0.01899251]
[1659255021249,0.0169524,23723.0,23721.0,0.05]
[1659255021463,0.0169524,23723.0,23720.0,0.01899251]
[1659255021887,0.0169524,23723.0,23721.0,0.05]
[1659255022312,0.0169524,23723.0,23720.0,0.01899251]
[1659255022610,0.00063616,23722.0,23719.0,0.78525733]
[1659255022838,0.00063616,23722.0,23719.0,0.70725733]
[1659255023257,0.0169524,23723.0,23720.0,0.01764257]
[1659255023933,0.01758856,23723.0,23720.0,0.01764257]
[1659255024133,0.01758856,23723.0,23721.0,0.05]
[1659255024382,0.01758856,23723.0,23720.0,0.01764257]
[1659255024630,0.01758856,23723.0,23719.0,0.78525733]
[1659255024827,0.01758856,23723.0,23719.0,0.70725733]
[1659255025271,0.05,23724.0,23720.0,6.357e-05]
[1659255025500,0.018,23723.0,23720.0,6.357e-05]
[1659255025909,0.018,23723.0,23721.0,0.01764257]
[1659255026125,0.0350306,23723.0,23719.0,0.78325733]
[1659255026419,0.0350306,23723.0,23720.0,6.357e-05]
[1659255026631,0.0350306,23723.0,23719.0,0.78325733]
[1659255026842,0.0170306,23723.0,23719.0,0.70725733]
[1659255027282,0.00063616,23722.0,23719.0,0.70725733]
[1659255027476,0.0350306,23723.0,23720.0,0.01770614]
[1659255028850,0.0170306,23723.0,23720.0,0.01770614]
[1659255029012,0.0170306,23723.0,23721.0,0.05]
[1659255029200,0.0170306,23723.0,23720.0,0.01770614]
[1659255029407,0.0350306,23723.0,23720.0,0.09370614]
[1659255029616,0.03566676,23723.0,23720.0,0.09370614]
[1659255030038,0.018,23723.0,23720.0,0.09370614]
[1659255030658,0.01863616,23723.0,23720.0,0.09370614]
[1659255031017,0.00063616,23723.0,23720.0,0.01764257]
[1659255031418,0.05,23724.0,23720.0,0.01764257]
[1659255032412,0.018,23723.0,23720.0,0.09364257]
[1659255033507,0.05,23724.0,23720.0,0.01764257]
[1659255034245,0.018,23723.0,23720.0,0.09364257]
[1659255034881,0.018,23723.0,23721.0,0.05006357]
[1659255035101,0.018,23723.0,23720.0,0.076]
[1659255035102,0.03566676,23723.0,23720.0,0.076]
[1659255035603,0.03566676,23723.0,23721.0,0.076]
[1659255035820,0.0350306,23723.0,23721.0,0.076]
[1659255036043,0.018,23723.0,23721.0,0.076]
[1659255036715,0.03566676,23723.0,23721.0,0.076]
[1659255036931,0.00063616,23723.0,23720.0,0.01770614]
[1659255037140,0.05,23724.0,23720.0,0.01770614]
[1659255037587,0.018,23723.0,23721.0,0.076]
[1659255037815,0.03566676,23723.0,23721.0,0.076]
[1659255038481,0.018,23723.0,23721.0,0.076]
[1659255038924,0.05,23724.0,23720.0,0.01770614]
[1659255039552,0.018,23723.0,23721.0,0.076]
[1659255040448,0.03566676,23723.0,23721.0,0.076]
[1659255040667,0.45725733,23722.0,23721.0,0.076]
[1659255040874,0.45725733,23722.0,23717.0,0.9714]
[1659255040875,0.71157333,23722.0,23717.0,0.9714]
[1659255041102,0.40725733,23722.0,23717.0,0.9714]
[1659255041537,0.42525733,23722.0,23717.0,1.0474]
[1659255042220,0.42525733,23722.0,23718.0,0.3]
[1659255042462,0.42525733,23722.0,23719.0,0.01764257]
[1659255042920,0.40725733,23722.0,23719.0,0.01764257]
[1659255043616,0.40725733,23722.0,23719.0,0.077]
[1659255044512,0.40725733,23722.0,23719.0,0.09464257]
[1659255044741,0.40719468,23722.0,23719.0,0.09464257]
[1659255044963,0.40719468,23722.0,23719.0,0.01764257]
[1659255045655,0.40719468,23722.0,23720.0,0.05]
[1659255045857,0.40719468,23722.0,23719.0,0.09464257]
[1659255046339,0.40719468,23722.0,23720.0,6.357e-05]
[1659255047262,0.40719468,23722.0,23719.0,0.01764257]
[1659255047494,0.40719468,23722.0,23720.0,0.077]
[1659255047707,0.40719468,23722.0,23720.0,0.07706357]
[1659255047902,0.40719468,23722.0,23720.0,0.077]
[1659255048897,0.40719468,23722.0,23719.0,0.01764257]
[1659255049379,0.40719468,23722.0,23720.0,0.05]
[1659255049673,0.40719468,23722.0,23719.0,0.09464257]
[1659255049899,0.42492409,23723.0,23719.0,0.09464257]
[1659255050811,0.40725733,23723.0,23719.0,0.01764257]
[1659255051463,0.42225733,23723.0,23720.0,0.00127175]
[1659255051675,0.42225733,23723.0,23721.0,0.05]
[1659255051920,0.42225733,23723.0,23720.0,0.00127175]
[1659255052794,0.40725733,23723.0,23720.0,0.00127175]
[1659255053306,0.304316,23722.0,23720.0,0.00127175]
[1659255053521,0.42225733,23723.0,23720.0,0.07627175]
[1659255053986,0.42225733,23723.0,23720.0,0.075]
[1659255054436,0.01766676,23722.0,23720.0,0.075]
[1659255054683,0.42225733,23723.0,23720.0,0.075]
[1659255054908,0.40725733,23723.0,23718.0,0.6]
[1659255055127,0.40725733,23723.0,23718.0,0.65]
[1659255055590,0.42225733,23723.0,23718.0,0.725]
[1659255055809,0.42225733,23723.0,23718.0,0.675]
[1659255056027,0.42225733,23723.0,23719.0,0.304316]
[1659255056251,0.42225733,23723.0,23720.0,0.01764257]
[1659255056704,0.42225733,23723.0,23721.0,0.05]
[1659255056934,0.40725733,23723.0,23718.0,0.65]
[1659255057809,0.40725733,23723.0,23718.0,0.35]
[1659255058265,0.40725733,23723.0,23718.0,0.5371844]
[1659255058511,0.40725733,23723.0,23718.0,0.35]
[1659255059434,0.42225733,23723.0,23721.0,0.075]
[1659255059648,0.304316,23722.0,23721.0,0.075]
[1659255059872,0.42225733,23723.0,23721.0,0.09434338]
[1659255060090,0.42225733,23723.0,23721.0,0.075]
[1659255060330,0.43725733,23723.0,23721.0,0.075]
[1659255060560,0.42225733,23723.0,23719.0,0.3]
[1659255061105,0.42225733,23723.0,23720.0,0.01764257]
[1659255061256,0.43992409,23723.0,23720.0,0.01764257]
[1659255061496,0.43992409,23723.0,23721.0,0.05]
[1659255061711,0.43992409,23723.0,23719.0,0.075]
[1659255061712,0.42492409,23723.0,23719.0,0.075]
[1659255061923,0.42225733,23723.0,23721.0,0.01764257]
[1659255062151,0.42225733,23723.0,23719.0,0.125]
[1659255063015,0.42225733,23723.0,23720.0,0.01764257]
[1659255063242,0.40725733,23723.0,23720.0,0.01764257]
[1659255063455,0.42525733,23723.0,23721.0,0.05504847]
[1659255063710,0.42525733,23723.0,23721.0,0.00504847]
[1659255063930,0.47333489,23723.0,23722.0,0.00383216]
[1659255064836,0.75965089,23723.0,23722.0,0.00383216]
[1659255065105,0.45533489,23723.0,23722.0,0.00383216]
[1659255065340,0.71157333,23723.0,23718.0,0.3]
[1659255065577,0.40725733,23723.0,23722.0,0.077]
[1659255065802,0.71157333,23723.0,23722.0,0.077]
[1659255066062,0.7114647,23723.0,23722.0,0.077]
[1659255066503,0.4071487,23723.0,23722.0,0.09969081]
[1659255066726,0.4071487,23723.0,23722.0,0.077]
[1659255066966,0.4071487,23723.0,23719.0,0.05]
[1659255067196,0.3897,23729.0,23720.0,0.433116]
[1659255067438,0.70725733,23728.0,23721.0,0.3]
[1659255067664,0.71157333,23727.0,23722.0,0.077]
[1659255067884,0.71157333,23726.0,23723.0,0.05]
[1659255068113,0.304316,23725.0,23722.0,0.077]
[1659255068341,0.42492409,23726.0,23723.0,0.01764257]
[1659255068591,0.304316,23725.0,23723.0,0.01764257]
[1659255068905,0.304316,23724.0,23723.0,0.01764257]
[1659255069063,0.40725733,23726.0,23723.0,0.01764257]
[1659255069281,0.304316,23725.0,23723.0,0.01764257]
[1659255069496,0.40725733,23726.0,23723.0,0.09464257]
[1659255069710,0.304316,23725.0,23723.0,0.09464257]
[1659255069941,0.40725733,23726.0,23723.0,0.09464257]
[1659255070181,0.304316,23725.0,23723.0,0.09464257]
[1659255070409,0.40725733,23726.0,23723.0,0.09464257]
[1659255070622,0.304316,23725.0,23723.0,0.09464257]
[1659255070846,0.40725733,23726.0,23723.0,0.01764257]
[1659255071540,0.304316,23725.0,23723.0,0.01764257]
[1659255071758,0.46425733,23726.0,23723.0,0.01764257]
[1659255071980,0.304316,23725.0,23723.0,0.01764257]
[1659255072220,0.46425733,23726.0,23723.0,0.01764257]
[1659255072472,0.05,23724.0,23721.0,0.35]
[1659255072776,0.01766676,23725.0,23722.0,0.01764257]
[1659255072914,0.40725733,23726.0,23722.0,0.01764257]
[1659255073135,0.304316,23725.0,23722.0,0.01764257]
[1659255073356,0.34510933,23726.0,23722.0,0.01764257]
[1659255073576,0.007,23725.0,23722.0,0.08864257]
[1659255074505,0.007,23725.0,23722.0,0.13864257]
[1659255074695,0.007,23725.0,23723.0,0.00164531]
[1659255074907,0.34510933,23726.0,23723.0,0.00164531]
[1659255075120,0.304316,23725.0,23723.0,0.00164531]
[1659255075355,0.354316,23724.0,23720.0,0.6927]
[1659255075586,0.05,23724.0,23723.0,0.071]
[1659255075806,0.02466676,23725.0,23723.0,0.071]
[1659255076039,0.304316,23724.0,23723.0,0.071]
[1659255076292,0.02466676,23725.0,23723.0,0.071]
[1659255076510,0.304316,23724.0,23723.0,0.071]
[1659255076723,0.007,23725.0,23723.0,0.08864257]
[1659255076964,0.304316,23724.0,23723.0,0.00164531]
[1659255077166,0.34510933,23726.0,23723.0,0.00164531]
[1659255077396,0.304316,23725.0,23723.0,0.00164531]
[1659255077611,0.354316,23724.0,23723.0,0.00164531]
[1659255077812,0.354316,23724.0,23720.0,0.3]
[1659255078048,0.05,23724.0,23720.0,0.3]
[1659255078923,0.04563461,23724.0,23721.0,0.01764257]
[1659255079189,0.64510933,23726.0,23721.0,0.0238438]
[1659255079400,0.304316,23725.0,23721.0,0.02820919]
[1659255079610,0.013,23724.0,23721.0,0.0238438]
[1659255079852,0.013,23724.0,23721.0,0.02820919]
[1659255080128,0.013,23724.0,23721.0,0.0238438]
[1659255080814,0.34510933,23726.0,23721.0,0.0238438]
[1659255081031,0.64510933,23726.0,23721.0,0.0738438]
[1659255081244,0.34510933,23726.0,23721.0,0.0738438]
[1659255081475,0.39710933,23726.0,23721.0,0.0738438]
[1659255081686,0.39710933,23726.0,23721.0,0.1238438]
[1659255081908,0.39710933,23726.0,23721.0,0.0738438]
[1659255083133,0.39710933,23726.0,23721.0,0.0238438]
[1659255083351,0.34510933,23726.0,23721.0,0.0238438]
[1659255083542,0.39710933,23726.0,23721.0,0.0238438]
[1659255083757,0.39710933,23726.0,23721.0,0.0738438]
[1659255083977,0.39710933,23726.0,23721.0,0.1238438]
[1659255084733,0.34510933,23726.0,23721.0,0.1238438]
[1659255085209,0.34510933,23726.0,23720.0,0.3]
[1659255085422,0.40210933,23726.0,23720.0,0.35]
[1659255085867,0.40210933,23726.0,23721.0,0.05]
[1659255086587,0.40210933,23726.0,23720.0,0.35]
[1659255086843,0.34510933,23726.0,23721.0,0.05]
[1659255087501,0.40210933,23726.0,23721.0,0.05]
[1659255088928,0.34510933,23726.0,23721.0,0.05]
[1659255089573,0.40210933,23726.0,23721.0,0.05]
[1659255090941,0.34510933,23726.0,23721.0,0.05]
[1659255091605,0.40210933,23726.0,23721.0,0.05]
[1659255092751,0.34510933,23726.0,23721.0,0.05]
[1659255093201,0.604316,23725.0,23719.0,0.40725733]
[1659255093474,0.304316,23724.0,23719.0,0.40725733]
[1659255093701,0.304316,23723.0,23719.0,0.40725733]
[1659255093916,0.01766676,23722.0,23719.0,0.41162272]
[1659255094135,0.3,23725.0,23717.0,0.40725733]
[1659255094368,0.40725733,23724.0,23717.0,0.40725733]
[1659255095560,0.41225733,23724.0,23717.0,0.47425733]
[1659255096269,0.41225733,23724.0,23717.0,0.52425733]
[1659255096495,0.005,23724.0,23717.0,0.117]
[1659255096724,0.70725733,23723.0,23717.0,0.067]
[1659255096952,0.40725733,23722.0,23716.0,0.0011]
[1659255097175,0.98075733,23722.0,23717.0,0.10436539]
[1659255097405,0.98075733,23722.0,23716.0,0.0011]
[1659255098561,0.98075733,23722.0,23717.0,0.10436539]
[1659255098790,0.3,23721.0,23717.0,0.10436539]
[1659255099020,0.98075733,23722.0,23718.0,0.01764257]
[1659255099244,0.01766676,23721.0,23718.0,0.01764257]
[1659255099463,0.01766676,23721.0,23718.0,0.00764257]
[1659255099693,0.01773498,23721.0,23717.0,0.076]
[1659255100146,0.01773498,23721.0,23717.0,0.08036539]
[1659255100372,0.01773498,23721.0,23717.0,0.076]
[1659255100835,0.01773498,23721.0,23716.0,0.0011]
[1659255101070,0.01773498,23721.0,23717.0,0.10436539]
[1659255101912,0.01773498,23721.0,23718.0,0.00028109]
[1659255102094,0.01773498,23721.0,23717.0,0.10436539]
[1659255102095,0.72499231,23721.0,23717.0,0.10436539]
[1659255102265,0.42499231,23721.0,23716.0,0.0771]
[1659255102480,0.42499231,23721.0,23717.0,0.10436539]
[1659255103081,0.72499231,23721.0,23717.0,0.10436539]
[1659255103301,0.72499231,23721.0,23716.0,0.0011]
[1659255103524,0.04126848,23717.0,23716.0,0.0011]
[1659255103802,0.45852581,23717.0,23716.0,0.0011]
[1659255104033,1.06284181,23717.0,23716.0,0.0011]
[1659255105576,1.11884181,23717.0,23716.0,0.0011]
[1659255106288,0.81884181,23717.0,23716.0,0.0011]
[1659255106715,0.81890955,23717.0,23716.0,0.0011]
[1659255107392,0.76354571,23717.0,23716.0,0.0011]
[1659255107649,0.86354571,23717.0,23716.0,0.0011]
[1659255108963,0.81354571,23717.0,23716.0,0.0011]
[1659255109626,0.87154571,23717.0,23716.0,0.0011]
[1659255111413,0.81354571,23717.0,23716.0,0.0011]
[1659255111751,0.87154571,23717.0,23716.0,0.0011]
[1659255112420,0.82154571,23717.0,23716.0,0.0011]
[1659255113104,0.76354571,23717.0,23716.0,0.0011]
[1659255113554,0.81754571,23717.0,23716.0,0.0011]
[1659255114202,1.11754571,23717.0,23716.0,0.0011]
[1659255114413,1.16754571,23717.0,23716.0,0.0011]
[1659255114641,0.81354571,23717.0,23716.0,0.0011]
[1659255115619,0.86954571,23717.0,23716.0,0.0011]
[1659255116914,0.81354571,23717.0,23716.0,0.0011]
[1659255117347,0.86954571,23717.0,23716.0,0.0011]
[1659255118673,0.81354571,23717.0,23716.0,0.0011]
[1659255119554,0.0011,23716.0,23713.0,0.0011]
[1659255119784,0.80725733,23714.0,23713.0,0.0011]
[1659255120014,0.04126848,23709.0,23701.0,0.0021]
[1659255120243,1.59614181,23709.0,23701.0,0.0021]
[1659255120503,0.04126848,23702.0,23701.0,0.0021]
[1659255120728,0.75284181,23702.0,23701.0,0.0021]
[1659255120946,0.76987241,23702.0,23701.0,0.0021]
[1659255121423,1.59317241,23702.0,23701.0,0.0021]
[1659255121662,1.99317241,23702.0,23701.0,0.0021]
[1659255121877,2.24823184,23702.0,23701.0,0.0021]
[1659255122092,2.19823184,23702.0,23701.0,0.0021]
[1659255122305,1.49987241,23702.0,23701.0,0.0021]
[1659255122534,0.09126848,23701.0,23700.0,0.001]
[1659255122761,0.09126848,23699.0,23698.0,0.0021]
[1659255123027,0.81555641,23699.0,23698.0,0.0021]
[1659255123233,1.81987241,23699.0,23698.0,0.0021]
[1659255123470,1.81987241,23699.0,23697.0,0.0031]
[1659255123471,0.57911848,23698.0,23697.0,0.0031]
[1659255123706,1.99069181,23698.0,23697.0,0.0031]
[1659255125627,0.09126848,23697.0,23696.0,0.001]
[1659255125866,0.09126848,23697.0,23684.0,0.5513812]
[1659255125867,0.04126848,23691.0,23684.0,0.5513812]
[1659255126097,0.70725733,23690.0,23684.0,0.5513812]
[1659255126356,0.76157333,23689.0,23684.0,0.5513812]
[1659255126580,0.04126848,23685.0,23684.0,0.5513812]
[1659255126844,0.41789349,23685.0,23684.0,0.5513812]
[1659255127040,0.01063616,23685.0,23684.0,0.5463812]
[1659255127272,0.40725733,23686.0,23684.0,0.5463812]
[1659255127736,0.40725733,23689.0,23684.0,0.55902468]
[1659255127978,0.9965,23694.0,23685.0,0.05]
[1659255127979,0.304316,23688.0,23685.0,0.05]
[1659255128225,0.40725733,23692.0,23687.0,0.10873152]
[1659255128455,0.40725733,23692.0,23686.0,0.14875785]
[1659255128680,0.40725733,23692.0,23688.0,0.01264348]
[1659255128933,0.40725733,23692.0,23688.0,0.021375]
[1659255128934,0.304316,23691.0,23688.0,0.021375]
[1659255129168,0.40725733,23692.0,23688.0,0.01264348]
[1659255129401,0.40725733,23692.0,23689.0,0.01264348]
[1659255129639,0.304316,23691.0,23689.0,0.02928934]
[1659255129869,0.0270306,23691.0,23689.0,0.01264348]
[1659255130092,0.0270306,23691.0,23690.0,0.01264348]
[1659255130312,0.73860393,23691.0,23690.0,0.01264348]
[1659255130541,0.73860393,23691.0,23684.0,1.0963812]
[1659255130542,0.73860393,23691.0,23684.0,0.5463812]
[1659255130814,0.71157333,23690.0,23684.0,0.5463812]
[1659255131055,0.304316,23689.0,23685.0,0.40725733]
[1659255131269,0.8531,23694.0,23686.0,0.00764257]
[1659255131503,0.007,23690.0,23686.0,0.00764257]
[1659255131722,0.02766676,23689.0,23686.0,0.00873152]
[1659255132008,0.304316,23688.0,23686.0,0.00873152]
[1659255132232,0.02766676,23689.0,23684.0,0.5463812]
[1659255132458,0.41425733,23690.0,23685.0,0.05]
[1659255132686,0.0937,23698.0,23685.0,0.05]
[1659255132687,0.0937,23698.0,23689.0,0.1281]
[1659255132911,0.40725733,23697.0,23689.0,0.23683152]
[1659255133366,0.304316,23696.0,23689.0,0.10873152]
[1659255133587,0.71157333,23695.0,23689.0,0.10873152]
[1659255133812,0.304316,23694.0,23689.0,0.10873152]
[1659255134023,0.40725733,23695.0,23689.0,0.10873152]
[1659255134244,0.304316,23694.0,23689.0,0.10873152]
[1659255134514,0.40725733,23695.0,23689.0,0.10873152]
[1659255134728,0.304316,23694.0,23689.0,0.10873152]
[1659255134947,0.40725733,23694.0,23688.0,0.25]
[1659255135171,0.40725733,23694.0,23689.0,0.05]
[1659255135397,0.304316,23693.0,23688.0,0.25]
[1659255135619,0.40725733,23693.0,23688.0,0.25]
[1659255136573,0.40725733,23693.0,23688.0,0.3]
[1659255136806,0.40725733,23693.0,23688.0,0.35]
[1659255137028,0.62712774,23694.0,23688.0,0.75725733]
[1659255137268,0.62712774,23694.0,23692.0,0.15873152]
[1659255137495,0.62712774,23694.0,23693.0,0.42111256]
[1659255137735,0.62712774,23694.0,23693.0,0.84931256]
[1659255137966,0.62712774,23694.0,23693.0,1.25656989]
[1659255138198,0.61442774,23694.0,23693.0,1.12836989]
[1659255139064,0.61442774,23694.0,23693.0,0.41304752]
[1659255139289,0.61442774,23694.0,23690.0,0.510915]
[1659255139290,0.61442774,23694.0,23690.0,0.3]
[1659255139531,0.61442774,23694.0,23693.0,0.048]
[1659255139979,0.6420945,23694.0,23693.0,0.048]
[1659255140486,0.61442774,23694.0,23693.0,0.05074004]
[1659255140940,0.61442774,23694.0,23693.0,0.42981604]
[1659255141160,0.61442774,23694.0,23693.0,0.82981604]
[1659255141630,0.61442774,23694.0,23693.0,1.08771604]
[1659255142338,0.61442774,23694.0,23693.0,1.49497337]
[1659255142774,0.61442774,23694.0,23693.0,1.44797337]
[1659255142996,0.61442774,23694.0,23693.0,1.40352337]
[1659255143439,0.61442774,23694.0,23693.0,1.44152337]
[1659255144756,0.61442774,23694.0,23693.0,1.40352337]
[1659255145538,0.61442774,23694.0,23693.0,1.44152337]
[1659255145773,0.61442774,23694.0,23693.0,1.36321337]
[1659255146977,0.61442774,23694.0,23693.0,1.32521337]
[1659255147203,0.61442774,23694.0,23693.0,0.65705604]
[1659255147424,0.61442774,23694.0,23693.0,0.035]
[1659255147647,0.69242774,23694.0,23693.0,0.035]
[1659255149251,0.61442774,23694.0,23690.0,0.1]
[1659255149476,0.61442774,23694.0,23693.0,0.07]
[1659255150569,0.6420945,23694.0,23693.0,0.07]
[1659255150778,0.6420945,23694.0,23691.0,0.00777958]
[1659255151292,0.61442774,23694.0,23692.0,0.05]
[1659255151532,0.68942774,23694.0,23692.0,0.00873152]
[1659255151723,0.68942774,23694.0,23691.0,0.019]
[1659255151989,0.68942774,23694.0,23692.0,0.00764257]
[1659255152201,0.68942774,23694.0,23693.0,0.10873152]
[1659255152437,0.68942774,23694.0,23693.0,0.67246952]
[1659255152907,0.61442774,23694.0,23693.0,1.07972685]
[1659255153598,0.61442774,23694.0,23693.0,1.11372685]
[1659255154784,0.61442774,23694.0,23693.0,1.07972685]
[1659255155191,0.61442774,23694.0,23693.0,0.67246952]
[1659255155403,0.61442774,23694.0,23693.0,0.62246952]
[1659255155633,0.61442774,23694.0,23693.0,0.65446952]
[1659255155880,0.61442774,23694.0,23693.0,0.70446952]
[1659255156817,0.61442774,23694.0,23693.0,0.67246952]
[1659255157466,0.61442774,23694.0,23693.0,0.70746952]
[1659255158418,0.61431761,23694.0,23693.0,0.70746952]
[1659255159262,0.61431761,23694.0,23693.0,0.67246952]
[1659255159506,0.61431761,23694.0,23693.0,0.70846952]
[1659255160842,0.61431761,23694.0,23693.0,0.67246952]
[1659255161677,0.61431761,23694.0,23693.0,0.70846952]
[1659255162821,0.61431761,23694.0,23693.0,0.67246952]
[1659255163536,0.61431761,23694.0,23693.0,0.70846952]
[1659255164879,0.61431761,23694.0,23693.0,0.67246952]
[1659255165109,0.61431761,23694.0,23687.0,0.06601687]
[1659255165110,2.2035577,23694.0,23687.0,0.06601687]
[1659255165388,2.2035577,23694.0,23686.0,0.00014132]
[1659255165389,0.1,23688.0,23686.0,0.00014132]
[1659255165586,0.404465,23687.0,23686.0,0.00014132]